[Event "Azerbaijan Men Championship 2024"]
[Site "Baku"]
[Date "2024.04.13"]
[Round "3.3"]
[White "Guliyev, Namig"]
[Black "Gadimbayli, Abdulla"]
[Result "1/2-1/2"]
[ECO "B45"]
[WhiteElo "2509"]
[BlackElo "2489"]
[Annotator "RC"]
[PlyCount "90"]
[EventDate "2024.04.11"]
[EventType "swiss"]
[EventCountry "AZE"]
[SourceTitle "playchess.com"]
[Source "ChessBase"]
[SourceQuality "1"]
[TimeControl "40/5400+30:1800+30"]

1. e4 {[%emt 0:00:02]} c5 {[%emt 0:00:37]} 2. Nf3 {[%emt 0:00:08]} e6 {[%emt 0:00:26]} 3. d4 {[%emt 0:00:11]} cxd4 {[%emt 0:00:05]} 4. Nxd4 {[%emt 0:00:04]} Nf6 {[%emt 0:00:10]} 5. Nc3 {[%emt 0:00:08]} Nc6 {[%emt 0:00:11]} 6. Ndb5 {[%emt 0:00:52]} Bb4 {[%emt 0:00:43]} 7. a3 {[%emt 0:05:42]} Bxc3+ {[%emt 0:00:23]} 8. Nxc3 {[%emt 0:00:08]} d5 {[%emt 0:00:27]} 9. Bd3 {[%emt 0:05:59]} dxe4 {[%emt 0:00:37]} 10. Nxe4 {[%emt 0:00:05]} Nxe4 {[%emt 0:00:06]} 11. Bxe4 {[%emt 0:00:05]} Qxd1+ {[%emt 0:00:57]} 12. Kxd1 {[%emt 0:00:07]} Bd7 {[%emt 0:00:25]} 13. Be3 {[%emt 0:00:09]} f5 {[%emt 0:01:42]} 14. Bf3 {[%emt 0:01:34]} e5 {[%emt 0:02:24]} 15. Kc1 {[%emt 0:00:31]} Rc8 {[%emt 0:34:08]} 16. Re1 {[%emt 0:11:29]} Kf7 {[%emt 0:02:51]} 17. b3 {[%emt 0:03:36]} f4 {[%emt 0:08:34]} 18. Bc5 {[%emt 0:13:41]} b6 {[%emt 0:07:36]} 19. Bd6 {[%emt 0:26:24]} Nd4 {[%emt 0:03:55]} 20. Ra2 {[%emt 0:01:49]} Nxb3+ {[%emt 0:05:41]} 21. Kb2 {[%emt 0:00:46]} Nd2 {[%emt 0:12:29]} 22. Bxe5 {[%emt 0:02:06]} Rhe8 {[%emt 0:06:37]} 23. Bd5+ {[%emt 0:01:55]} Be6 {[%emt 0:00:12]} 24. Bxe6+ {[%emt 0:00:26]} Rxe6 {[%emt 0:00:06]} 25. Kc1 {[%emt 0:00:21]} Nb3+ {[%emt 0:00:13]} 26. Kb1 {[%emt 0:00:53]} Nd2+ {[%emt 0:01:55]} 27. Kc1 {[%emt 0:00:08]} Nb3+ {[%emt 0:02:38]} 28. Kb1 {[%emt 0:01:27]} Na5 {[%emt 0:00:17]} 29. g3 {[%emt 0:04:26]} fxg3 {[%emt 0:03:42]} 30. fxg3 {[%emt 0:04:29]} Nc4 {[%emt 0:03:12]} 31. Rf1+ {[%emt 0:02:56]} Kg6 {[%emt 0:00:06]} 32. Bf4 {[%emt 0:00:06]} Rce8 {[%emt 0:00:50]} 33. c3 {[%emt 0:04:37]} Re2 {[%emt 0:00:09]} 34. a4 {[%emt 0:03:03]} R8e4 {[%emt 0:02:29]} 35. h4 {[%emt 0:03:48]} Kh5 {[%emt 0:00:32]} 36. Rd1 {[%emt 0:00:38]} Re1 {[%emt 0:00:25]} 37. Rxe1 {[%emt 0:00:51]} Rxe1+ {[%emt 0:00:02]} 38. Kc2 {[%emt 0:00:06]} Re2+ {[%emt 0:01:01]} 39. Kb3 {[%emt 0:00:25]} Na5+ {[%emt 0:00:01]} 40. Ka3 {[%emt 0:00:00]} Nc4+ {[%emt 0:00:00]} 41. Kb3 {[%emt 0:00:12]} Na5+ {[%emt 0:04:08]} 42. Ka3 {[%emt 0:00:05]} Re1 {[%emt 0:01:22]} 43. Rf2 {[%emt 0:02:01]} Ra1+ {[%emt 0:06:29]} 44. Ra2 {[%emt 0:00:13]} Re1 {[%emt 0:01:34]} 45. Rf2 {[%emt 0:00:11]} Ra1+ {[%emt 0:03:37]} 1/2-1/2

[Event "Azerbaijan Men Championship 2024"]
[Site "Baku"]
[Date "2024.04.13"]
[Round "3.4"]
[White "Babazada, Khazar"]
[Black "Samadov, Read"]
[Result "1/2-1/2"]
[ECO "B94"]
[WhiteElo "2474"]
[BlackElo "2502"]
[Annotator "RC"]
[PlyCount "80"]
[EventDate "2024.04.11"]
[EventType "swiss"]
[EventCountry "AZE"]
[SourceTitle "playchess.com"]
[Source "ChessBase"]
[SourceQuality "1"]
[TimeControl "40/5400+30:1800+30"]

1. e4 {[%emt 0:00:07]} c5 {[%emt 0:00:05]} 2. Nf3 {[%emt 0:00:44]} d6 {[%emt 0:00:07]} 3. d4 {[%emt 0:00:07]} cxd4 {[%emt 0:00:05]} 4. Nxd4 {[%emt 0:00:11]} Nf6 {[%emt 0:00:06]} 5. Nc3 {[%emt 0:00:08]} a6 {[%emt 0:00:02]} 6. Bg5 {[%emt 0:00:09]} Nbd7 {[%emt 0:00:23]} 7. Bc4 {[%emt 0:00:12]} Qb6 {[%emt 0:00:35]} 8. Bb3 {[%emt 0:00:31]} e6 {[%emt 0:00:25]} 9. Qd2 {[%emt 0:00:10]} Be7 {[%emt 0:00:52]} 10. O-O-O {[%emt 0:00:20]} Nc5 {[%emt 0:00:47]} 11. Rhe1 {[%emt 0:00:18]} Qc7 {[%emt 0:01:55]} 12. f4 {[%emt 0:00:20]} h6 {[%emt 0:01:16]} 13. e5 {[%emt 0:02:06]} dxe5 {[%emt 0:00:58]} 14. fxe5 {[%emt 0:00:08]} hxg5 {[%emt 0:01:00]} 15. exf6 {[%emt 0:00:09]} Bxf6 {[%emt 0:01:01]} 16. Nd5 {[%emt 0:00:11]} Qd8 {[%emt 0:00:48]} 17. Bc4 {[%emt 0:00:07]} O-O {[%emt 0:23:01]} 18. Nxf6+ {[%emt 0:00:31]} Qxf6 {[%emt 0:02:40]} 19. Qa5 {[%emt 0:00:25]} b5 {[%emt 0:14:07]} 20. Bxb5 {[%emt 0:00:45]} Nb7 {[%emt 0:03:42]} 21. Qa4 {[%emt 0:00:35]} e5 {[%emt 0:04:26]} 22. Ne2 {[%emt 0:58:42]} Be6 {[%emt 0:12:57]} 23. Bc6 {[%emt 0:01:31]} Rab8 {[%emt 0:03:39]} 24. Nc3 {[%emt 0:01:00]} Rfc8 {[%emt 0:03:20]} 25. Nd5 {[%emt 0:02:51]} Bxd5 {[%emt 0:01:39]} 26. Bxd5 {[%emt 0:00:04]} Nc5 {[%emt 0:01:54]} 27. Qa3 {[%emt 0:00:52]} Ne6 {[%emt 0:02:23]} 28. Kb1 {[%emt 0:04:56]} Qf2 {[%emt 0:04:07]} 29. Bb3 {[%emt 0:01:20]} Qxg2 {[%emt 0:01:25]} 30. Rf1 {[%emt 0:05:09]} Nd4 {[%emt 0:03:43]} 31. Bxf7+ {[%emt 0:02:31]} Kh8 {[%emt 0:00:09]} 32. Bg6 {[%emt 0:00:33]} e4 {[%emt 0:01:17]} 33. Rc1 {[%emt 0:00:55]} Nf3 {[%emt 0:05:05]} 34. Ka1 {[%emt 0:00:15]} Nh4 {[%emt 0:00:39]} 35. Qxa6 {[%emt 0:03:49]} Nxg6 {[%emt 0:01:05]} 36. Qxg6 {[%emt 0:00:07]} Rxc2 {[%emt 0:00:12]} 37. Qh5+ {[%emt 0:00:06]} Kg8 {[%emt 0:00:03]} 38. Qf7+ {[%emt 0:00:21]} Kh8 {[%emt 0:00:07]} 39. Qh5+ {[%emt 0:00:03]} Kg8 {[%emt 0:00:02]} 40. Qf7+ {[%emt 0:00:00]} Kh8 {[%emt 0:00:00]} 1/2-1/2

[Event "Azerbaijan Men Championship 2024"]
[Site "Baku"]
[Date "2024.04.13"]
[Round "3.5"]
[White "Talibov, Shiroghlan"]
[Black "Iskandarov, Misratdin"]
[Result "0-1"]
[ECO "B67"]
[WhiteElo "2373"]
[BlackElo "2538"]
[Annotator "RC"]
[PlyCount "68"]
[EventDate "2024.04.11"]
[EventType "swiss"]
[EventCountry "AZE"]
[SourceTitle "playchess.com"]
[Source "ChessBase"]
[SourceQuality "1"]
[TimeControl "40/5400+30:1800+30"]

1. e4 {[%emt 0:00:01]} c5 {[%emt 0:05:26]} 2. Nf3 {[%emt 0:00:07]} d6 {[%emt 0:00:07]} 3. d4 {[%emt 0:00:07]} cxd4 {[%emt 0:00:07]} 4. Nxd4 {[%emt 0:00:03]} Nf6 {[%emt 0:00:05]} 5. Nc3 {[%emt 0:00:05]} Bd7 {[%emt 0:00:04]} 6. Bg5 {[%emt 0:00:54]} e6 {[%emt 0:00:37]} 7. Qd2 {[%emt 0:03:13]} h6 {[%emt 0:00:06]} 8. Bxf6 {[%emt 0:04:04]} Qxf6 {[%emt 0:00:13]} 9. O-O-O {[%emt 0:08:51]} a6 {[%emt 0:00:36]} 10. f4 {[%emt 0:01:11]} Nc6 {[%emt 0:02:19]} 11. Nf3 {[%emt 0:04:58]} Qd8 {[%emt 0:01:37]} 12. g4 {[%emt 0:04:31]} b5 {[%emt 0:02:55]} 13. Kb1 {[%emt 0:01:40]} Qb6 {[%emt 0:09:38]} 14. Ne2 {[%emt 0:11:30]} Qf2 {[%emt 0:07:43]} 15. Ne1 {[%emt 0:01:21]} Be7 {[%emt 0:01:45]} 16. h4 {[%emt 0:00:22]} Qb6 {[%emt 0:00:39]} 17. Nf3 {[%emt 0:02:18]} Na5 {[%emt 0:09:32]} 18. Ned4 {[%emt 0:01:59]} Nc4 {[%emt 0:01:38]} 19. Bxc4 {[%emt 0:07:16]} bxc4 {[%emt 0:00:13]} 20. c3 {[%emt 0:01:40]} Rb8 {[%emt 0:05:57]} 21. Rh2 {[%emt 0:02:43]} h5 {[%emt 0:01:42]} 22. gxh5 {[%emt 0:03:59]} Rxh5 {[%emt 0:03:52]} 23. Ng5 {[%emt 0:00:09]} g6 {[%emt 0:02:28]} 24. Qe2 {[%emt 0:02:53]} e5 {[%emt 0:06:35]} 25. fxe5 {[%emt 0:17:31]} dxe5 {[%emt 0:01:04]} 26. Nf5 {[%emt 0:00:32]} Bxg5 {[%emt 0:21:24]} 27. Ng7+ {[%emt 0:11:49]} Ke7 {[%emt 0:00:07]} 28. Nxh5 {[%emt 0:00:07]} Bh6 {[%emt 0:04:05]} 29. Ng3 {[%emt 0:01:01]} Bf4 {[%emt 0:01:47]} 30. Qf3 {[%emt 0:01:59]} Ba4 {[%emt 0:00:35]} 31. Rf1 {[%emt 0:06:33]} Rd8 {[%emt 0:00:09]} 32. Ne2 {[%emt 0:00:30]} Rd2 {[%emt 0:02:28]} 33. b4 {[%emt 0:00:04]} cxb3 {[%emt 0:00:06]} 34. a3 {[%emt 0:00:05]} b2 {[%emt 0:00:13]} 0-1

[Event "Azerbaijan Men Championship 2024"]
[Site "Baku"]
[Date "2024.04.13"]
[Round "3.6"]
[White "Suleymanli, Suleyman"]
[Black "Abdulov, Orkhan"]
[Result "1-0"]
[ECO "A06"]
[WhiteElo "2246"]
[BlackElo "2401"]
[Annotator "RC"]
[PlyCount "59"]
[EventDate "2024.04.11"]
[EventType "swiss"]
[EventCountry "AZE"]
[SourceTitle "playchess.com"]
[Source "ChessBase"]
[SourceQuality "1"]
[TimeControl "40/5400+30:1800+30"]

1. Nf3 {[%emt 0:00:01]} c5 {[%emt 0:01:57]} 2. b3 {[%emt 0:00:05]} Nc6 {[%emt 0:05:00]} 3. Bb2 {[%emt 0:00:08]} d5 {[%emt 0:01:02]} 4. e3 {[%emt 0:00:31]} e6 {[%emt 0:02:52]} 5. Bb5 {[%emt 0:02:49]} a6 {[%emt 0:05:12]} 6. Bxc6+ {[%emt 0:00:17]} bxc6 {[%emt 0:00:01]} 7. O-O {[%emt 0:00:35]} a5 {[%emt 0:00:08]} 8. c4 {[%emt 0:05:43]} f6 {[%emt 0:07:44]} 9. Nc3 {[%emt 0:11:18]} Bd6 {[%emt 0:09:14]} 10. d3 {[%emt 0:05:18]} Nh6 {[%emt 0:20:19]} 11. Na4 {[%emt 0:03:50]} e5 {[%emt 0:10:06]} 12. cxd5 {[%emt 0:07:44]} cxd5 {[%emt 0:00:14]} 13. Rc1 {[%emt 0:08:39]} O-O {[%emt 0:11:52]} 14. Nxc5 {[%emt 0:15:38]} Qe7 {[%emt 0:02:02]} 15. Na4 {[%emt 0:01:52]} Bb7 {[%emt 0:00:53]} 16. Nc3 {[%emt 0:03:22]} e4 {[%emt 0:04:18]} 17. Nd4 {[%emt 0:04:48]} f5 {[%emt 0:01:19]} 18. g3 {[%emt 0:14:29]} Ng4 {[%emt 0:01:02]} 19. dxe4 {[%emt 0:02:50]} dxe4 {[%emt 0:03:28]} 20. Nxf5 {[%emt 0:00:05]} Rxf5 {[%emt 0:00:10]} 21. Qxg4 {[%emt 0:00:02]} Raf8 {[%emt 0:00:42]} 22. Qe2 {[%emt 0:06:03]} Bb8 {[%emt 0:03:32]} 23. Qc4+ {[%emt 0:01:35]} Kh8 {[%emt 0:00:17]} 24. Rcd1 {[%emt 0:01:04]} Qf6 {[%emt 0:00:59]} 25. Na4 {[%emt 0:01:59]} Qh6 {[%emt 0:01:02]} 26. Rd7 {[%emt 0:00:44]} Ba6 {[%emt 0:01:38]} 27. Qxe4 {[%emt 0:01:21]} Rg5 {[%emt 0:03:43]} 28. Qe7 {[%emt 0:00:12]} Rg8 {[%emt 0:00:34]} 29. Rd8 {[%emt 0:00:20]} Rf5 {[%emt 0:02:38]} 30. Qe8 {[%emt 0:00:47]} 1-0

[Event "Azerbaijan Men Championship 2024"]
[Site "Baku"]
[Date "2024.04.13"]
[Round "3.7"]
[White "Rasulov, Vugar"]
[Black "Hamidov, Allahverdi"]
[Result "1-0"]
[ECO "D03"]
[WhiteElo "2551"]
[BlackElo "2091"]
[Annotator "RC"]
[PlyCount "87"]
[EventDate "2024.04.11"]
[EventType "swiss"]
[EventCountry "AZE"]
[SourceTitle "playchess.com"]
[Source "ChessBase"]
[SourceQuality "1"]
[TimeControl "40/5400+30:1800+30"]

1. d4 {[%emt 0:03:08]} d5 {[%emt 0:00:39]} 2. Nf3 {[%emt 0:00:08]} Nf6 {[%emt 0:00:13]} 3. Bg5 {[%emt 0:00:05]} Ne4 {[%emt 0:02:08]} 4. Bh4 {[%emt 0:00:15]} Bf5 {[%emt 0:09:49]} 5. Nbd2 {[%emt 0:00:51]} c6 {[%emt 0:02:18]} 6. e3 {[%emt 0:01:42]} Qb6 {[%emt 0:01:00]} 7. Nxe4 {[%emt 0:01:33]} Bxe4 {[%emt 0:05:41]} 8. Bd3 {[%emt 0:02:45]} Bxd3 {[%emt 0:08:31]} 9. Qxd3 {[%emt 0:00:45]} Qa6 {[%emt 0:01:23]} 10. Qxa6 {[%emt 0:02:52]} Nxa6 {[%emt 0:00:23]} 11. Ke2 {[%emt 0:01:31]} e6 {[%emt 0:01:08]} 12. Bg3 {[%emt 0:00:59]} Nb8 {[%emt 0:01:11]} 13. c4 {[%emt 0:07:02]} dxc4 {[%emt 0:01:25]} 14. Rhc1 {[%emt 0:00:14]} Nd7 {[%emt 0:01:15]} 15. a4 {[%emt 0:00:48]} Be7 {[%emt 0:06:15]} 16. a5 {[%emt 0:00:27]} a6 {[%emt 0:00:23]} 17. Nd2 {[%emt 0:00:32]} f5 {[%emt 0:10:57]} 18. Nxc4 {[%emt 0:00:14]} O-O {[%emt 0:07:20]} 19. Rc3 {[%emt 0:01:49]} c5 {[%emt 0:03:37]} 20. Rd1 {[%emt 0:04:32]} Bf6 {[%emt 0:04:02]} 21. f3 {[%emt 0:10:42]} cxd4 {[%emt 0:01:38]} 22. exd4 {[%emt 0:00:02]} Rac8 {[%emt 0:02:10]} 23. Nd6 {[%emt 0:00:21]} Rxc3 {[%emt 0:00:23]} 24. bxc3 {[%emt 0:00:01]} e5 {[%emt 0:04:08]} 25. Nxb7 {[%emt 0:05:13]} Rb8 {[%emt 0:05:39]} 26. Rb1 {[%emt 0:05:19]} f4 {[%emt 0:01:26]} 27. Bf2 {[%emt 0:00:09]} exd4 {[%emt 0:02:22]} 28. Bxd4 {[%emt 0:00:28]} Be7 {[%emt 0:03:44]} 29. Kd3 {[%emt 0:00:53]} Kf7 {[%emt 0:00:17]} 30. Kc4 {[%emt 0:01:23]} Nf8 {[%emt 0:02:01]} 31. Kd5 {[%emt 0:00:46]} Ne6 {[%emt 0:00:13]} 32. Be5 {[%emt 0:00:32]} Rc8 {[%emt 0:00:16]} 33. Nd6+ {[%emt 0:00:29]} Bxd6 {[%emt 0:00:08]} 34. Bxd6 {[%emt 0:00:05]} Kf6 {[%emt 0:00:33]} 35. c4 {[%emt 0:00:16]} Rd8 {[%emt 0:00:27]} 36. Rb6 {[%emt 0:00:31]} Kf5 {[%emt 0:00:07]} 37. c5 {[%emt 0:00:14]} g5 {[%emt 0:00:11]} 38. g4+ {[%emt 0:00:58]} fxg3 {[%emt 0:00:14]} 39. hxg3 {[%emt 0:00:01]} h5 {[%emt 0:00:09]} 40. g4+ {[%emt 0:00:00]} hxg4 {[%emt 0:00:00]} 41. fxg4+ {[%emt 0:00:15]} Kf6 {[%emt 0:00:10]} 42. Kc4 {[%emt 0:00:35]} Rh8 {[%emt 0:00:10]} 43. Rxa6 {[%emt 0:00:11]} Rh4 {[%emt 0:00:07]} 44. Kd5 {[%emt 0:00:05]} 1-0

[Event "Azerbaijan Men Championship 2024"]
[Site "Baku"]
[Date "2024.04.13"]
[Round "3.8"]
[White "Sadikhov, Ulvi"]
[Black "Aslanov, Umid"]
[Result "1/2-1/2"]
[ECO "A11"]
[WhiteElo "2497"]
[BlackElo "2239"]
[Annotator "RC"]
[PlyCount "146"]
[EventDate "2024.04.11"]
[EventType "swiss"]
[EventCountry "AZE"]
[SourceTitle "playchess.com"]
[Source "ChessBase"]
[SourceQuality "1"]
[TimeControl "40/5400+30:1800+30"]

1. b3 {[%emt 0:00:03]} d5 {[%emt 0:00:08]} 2. Bb2 {[%emt 0:00:05]} Nf6 {[%emt 0:00:27]} 3. g3 {[%emt 0:00:12]} c6 {[%emt 0:00:36]} 4. Bg2 {[%emt 0:00:08]} g6 {[%emt 0:04:47]} 5. Nf3 {[%emt 0:00:21]} Bg7 {[%emt 0:00:11]} 6. O-O {[%emt 0:00:04]} O-O {[%emt 0:00:09]} 7. c4 {[%emt 0:00:05]} Re8 {[%emt 0:04:21]} 8. d3 {[%emt 0:01:01]} a5 {[%emt 0:00:47]} 9. a3 {[%emt 0:01:27]} Bg4 {[%emt 0:09:40]} 10. Qc2 {[%emt 0:00:29]} Bxf3 {[%emt 0:01:20]} 11. Bxf3 {[%emt 0:00:08]} e5 {[%emt 0:01:18]} 12. Bg2 {[%emt 0:03:45]} d4 {[%emt 0:03:04]} 13. b4 {[%emt 0:02:18]} Qe7 {[%emt 0:09:05]} 14. bxa5 {[%emt 0:06:26]} Rxa5 {[%emt 0:03:05]} 15. Nd2 {[%emt 0:00:05]} Nbd7 {[%emt 0:01:16]} 16. Nb3 {[%emt 0:00:17]} Ra7 {[%emt 0:00:36]} 17. a4 {[%emt 0:00:20]} h5 {[%emt 0:02:03]} 18. Ba3 {[%emt 0:13:28]} Qe6 {[%emt 0:01:26]} 19. a5 {[%emt 0:15:50]} Bf8 {[%emt 0:06:20]} 20. Bxf8 {[%emt 0:08:21]} Kxf8 {[%emt 0:01:44]} 21. Qd2 {[%emt 0:02:25]} Kg7 {[%emt 0:00:22]} 22. e3 {[%emt 0:07:37]} dxe3 {[%emt 0:01:50]} 23. Qxe3 {[%emt 0:00:13]} Ra6 {[%emt 0:08:08]} 24. h3 {[%emt 0:37:22]} b6 {[%emt 0:04:08]} 25. Rfe1 {[%emt 0:00:00]} bxa5 {[%emt 0:06:05]} 26. Rxa5 {[%emt 0:00:00]} Rxa5 {[%emt 0:01:12]} 27. Nxa5 {[%emt 0:00:00]} c5 {[%emt 0:00:42]} 28. Rb1 {[%emt 0:00:00]} Qd6 {[%emt 0:03:43]} 29. Nb7 {[%emt 0:00:00]} Qd4 {[%emt 0:06:08]} 30. Qxd4 exd4 31. Kf1 {[%emt 0:00:00]} g5 {[%emt 0:01:46]} 32. Rb5 {[%emt 0:00:00]} Re5 {[%emt 0:00:47]} 33. Na5 {[%emt 0:00:00]} g4 {[%emt 0:03:15]} 34. h4 {[%emt 0:00:00]} Re6 {[%emt 0:02:44]} 35. Nb3 {[%emt 0:00:00]} Ra6 {[%emt 0:04:44]} 36. Bb7 {[%emt 0:00:00]} Ra3 {[%emt 0:00:33]} 37. Nxc5 {[%emt 0:00:00]} Nxc5 {[%emt 0:00:08]} 38. Rxc5 {[%emt 0:00:00]} Rxd3 {[%emt 0:00:06]} 39. Ke2 {[%emt 0:00:00]} Ra3 {[%emt 0:01:19]} 40. Rb5 {[%emt 0:00:00]} Rc3 {[%emt 0:00:00]} 41. c5 {[%emt 0:06:00]} Nd7 {[%emt 0:07:39]} 42. c6 {[%emt 0:02:47]} Nc5 {[%emt 0:00:09]} 43. Rb4 {[%emt 0:15:02]} Ne6 {[%emt 0:02:07]} 44. Kd2 {[%emt 0:01:26]} Kf6 {[%emt 0:01:30]} 45. Rb2 {[%emt 0:06:17]} Ke7 {[%emt 0:08:37]} 46. Rc2 {[%emt 0:00:14]} Rxc2+ {[%emt 0:00:22]} 47. Kxc2 {[%emt 0:00:03]} Kd6 {[%emt 0:00:03]} 48. Kd3 {[%emt 0:00:20]} Ke5 {[%emt 0:02:04]} 49. Bc8 {[%emt 0:04:39]} Nc7 {[%emt 0:07:48]} 50. Kc4 {[%emt 0:00:38]} Ke4 {[%emt 0:03:00]} 51. Bd7 {[%emt 0:00:18]} d3 {[%emt 0:04:02]} 52. Kc3 {[%emt 0:00:07]} Kf3 {[%emt 0:02:17]} 53. Kxd3 {[%emt 0:00:07]} Kxf2 {[%emt 0:00:03]} 54. Bxg4 {[%emt 0:00:09]} Kxg3 {[%emt 0:00:03]} 55. Bxh5 {[%emt 0:00:03]} f6 {[%emt 0:00:03]} 56. Kd4 {[%emt 0:02:00]} Kxh4 {[%emt 0:00:10]} 57. Bf7 {[%emt 0:01:05]} Kg5 {[%emt 0:00:27]} 58. Kc5 {[%emt 0:00:22]} Na8 {[%emt 0:00:29]} 59. Kd6 {[%emt 0:01:39]} f5 {[%emt 0:00:45]} 60. Kd7 {[%emt 0:01:20]} Kf6 {[%emt 0:00:15]} 61. Bh5 {[%emt 0:00:27]} Ke5 {[%emt 0:01:53]} 62. Bf3 {[%emt 0:00:06]} f4 {[%emt 0:00:51]} 63. Bg2 {[%emt 0:00:09]} Nb6+ {[%emt 0:03:14]} 64. Ke7 {[%emt 0:00:25]} Na8 {[%emt 0:00:37]} 65. Kd7 {[%emt 0:01:02]} Nb6+ {[%emt 0:00:03]} 66. Kc7 {[%emt 0:00:57]} Nc4 {[%emt 0:00:20]} 67. Kc8 {[%emt 0:00:18]} Nd6+ {[%emt 0:02:19]} 68. Kd7 {[%emt 0:00:59]} Nb5 {[%emt 0:00:28]} 69. Bf1 {[%emt 0:01:28]} Na7 {[%emt 0:00:06]} 70. c7 {[%emt 0:00:02]} f3 {[%emt 0:00:43]} 71. Ba6 {[%emt 0:00:04]} f2 {[%emt 0:00:10]} 72. Bf1 {[%emt 0:00:21]} Kd5 {[%emt 0:00:05]} 73. Bg2+ {[%emt 0:00:20]} Kc5 {[%emt 0:00:04]} 1/2-1/2

[Event "Azerbaijan Men Championship 2024"]
[Site "Baku"]
[Date "2024.04.13"]
[Round "3.9"]
[White "Ibrahimli, Murad"]
[Black "Ahmad, Khagan"]
[Result "1-0"]
[ECO "D38"]
[WhiteElo "2396"]
[BlackElo "2321"]
[Annotator "RC"]
[PlyCount "79"]
[EventDate "2024.04.11"]
[EventType "swiss"]
[EventCountry "AZE"]
[SourceTitle "playchess.com"]
[Source "ChessBase"]
[SourceQuality "1"]
[TimeControl "40/5400+30:1800+30"]

1. Nf3 {[%emt 0:00:51]} d5 {[%emt 0:00:06]} 2. d4 {[%emt 0:00:17]} Nf6 {[%emt 0:00:09]} 3. c4 {[%emt 0:00:19]} e6 {[%emt 0:00:04]} 4. Nc3 {[%emt 0:00:41]} Bb4 {[%emt 0:00:10]} 5. cxd5 {[%emt 0:02:32]} exd5 {[%emt 0:00:07]} 6. Bg5 {[%emt 0:00:03]} h6 {[%emt 0:00:05]} 7. Bh4 {[%emt 0:02:43]} O-O {[%emt 0:00:19]} 8. e3 {[%emt 0:05:58]} Bf5 {[%emt 0:02:47]} 9. Qb3 {[%emt 0:00:09]} Bxc3+ {[%emt 0:00:04]} 10. bxc3 {[%emt 0:00:04]} Nbd7 {[%emt 0:00:05]} 11. Be2 {[%emt 0:00:44]} c5 {[%emt 0:00:07]} 12. dxc5 {[%emt 0:00:37]} Nxc5 {[%emt 0:00:06]} 13. Qb4 {[%emt 0:00:04]} Rc8 {[%emt 0:00:09]} 14. O-O {[%emt 0:00:36]} g5 {[%emt 0:00:11]} 15. Bg3 {[%emt 0:01:10]} Nfe4 {[%emt 0:00:08]} 16. Be5 {[%emt 0:19:33]} a5 {[%emt 0:00:48]} 17. Qa3 {[%emt 0:01:32]} Re8 {[%emt 1:03:07]} 18. Bd4 {[%emt 0:04:25]} Ne6 {[%emt 0:13:57]} 19. Rac1 {[%emt 0:04:39]} Bg4 {[%emt 0:03:17]} 20. Rfd1 {[%emt 0:02:53]} Nxd4 {[%emt 0:02:41]} 21. Rxd4 {[%emt 0:05:36]} Qc7 {[%emt 0:04:09]} 22. c4 {[%emt 0:03:26]} dxc4 {[%emt 0:03:55]} 23. h3 {[%emt 0:03:52]} Bxf3 {[%emt 0:02:57]} 24. Bxf3 {[%emt 0:03:17]} Nf6 {[%emt 0:00:25]} 25. Rdxc4 {[%emt 0:00:06]} Qxc4 {[%emt 0:00:14]} 26. Rxc4 {[%emt 0:00:04]} Rxc4 {[%emt 0:00:13]} 27. Qxa5 {[%emt 0:00:08]} Ne4 {[%emt 0:02:00]} 28. Qb5 {[%emt 0:00:47]} Rec8 {[%emt 0:01:39]} 29. Qxb7 {[%emt 0:01:17]} Rc1+ {[%emt 0:00:16]} 30. Kh2 {[%emt 0:00:01]} Nd2 {[%emt 0:00:43]} 31. Be2 {[%emt 0:01:08]} R8c2 {[%emt 0:00:21]} 32. Qa6 {[%emt 0:02:36]} Kg7 {[%emt 0:00:37]} 33. Qa4 {[%emt 0:02:17]} h5 {[%emt 0:00:30]} 34. Bd3 {[%emt 0:04:17]} Rc6 {[%emt 0:00:33]} 35. Qd4+ {[%emt 0:00:19]} Rf6 {[%emt 0:00:17]} 36. Qb2 {[%emt 0:02:01]} Rd1 {[%emt 0:00:11]} 37. Be2 {[%emt 0:00:17]} Nf1+ {[%emt 0:00:59]} 38. Kg1 {[%emt 0:00:17]} Nxe3+ {[%emt 0:00:03]} 39. Bxd1 {[%emt 0:00:06]} Nxd1 {[%emt 0:00:03]} 40. Qd2 {[%emt 0:00:00]} 1-0

[Event "Azerbaijan Men Championship 2024"]
[Site "Baku"]
[Date "2024.04.14"]
[Round "4.1"]
[White "Muradli, Mahammad"]
[Black "Suleymanli, Aydin"]
[Result "1-0"]
[ECO "D41"]
[WhiteElo "2555"]
[BlackElo "2607"]
[Annotator "RC"]
[PlyCount "91"]
[EventDate "2024.04.11"]
[EventType "swiss"]
[EventCountry "AZE"]
[SourceTitle "playchess.com"]
[Source "ChessBase"]
[SourceQuality "1"]
[TimeControl "40/5400+30:1800+30"]

1. d4 {[%emt 0:06:31]} Nf6 {[%emt 0:00:21]} 2. c4 {[%emt 0:00:09]} e6 {[%emt 0:00:03]} 3. Nf3 {[%emt 0:00:07]} d5 {[%emt 0:00:04]} 4. Nc3 {[%emt 0:00:08]} c5 {[%emt 0:00:08]} 5. cxd5 {[%emt 0:00:10]} cxd4 {[%emt 0:00:11]} 6. Qxd4 {[%emt 0:00:12]} exd5 {[%emt 0:00:09]} 7. e4 {[%emt 0:00:17]} dxe4 {[%emt 0:00:09]} 8. Qxd8+ {[%emt 0:00:29]} Kxd8 {[%emt 0:00:04]} 9. Ng5 {[%emt 0:00:09]} Be6 {[%emt 0:00:06]} 10. Nxe6+ {[%emt 0:00:11]} fxe6 {[%emt 0:00:07]} 11. Bg5 {[%emt 0:00:06]} Nc6 {[%emt 0:05:43]} 12. O-O-O+ {[%emt 0:00:13]} Ke8 {[%emt 0:00:21]} 13. Bc4 {[%emt 0:00:16]} Ne5 {[%emt 0:00:16]} 14. Bxe6 {[%emt 0:00:12]} Nd3+ {[%emt 0:00:52]} 15. Kc2 {[%emt 0:00:07]} Nxf2 {[%emt 0:00:53]} 16. Bxf6 {[%emt 0:00:04]} Nxd1 {[%emt 0:04:40]} 17. Rxd1 {[%emt 0:00:35]} gxf6 {[%emt 0:00:01]} 18. Rd7 {[%emt 0:00:13]} Rd8 {[%emt 0:08:12]} 19. Rxb7 {[%emt 0:00:10]} Rd6 {[%emt 0:00:01]} 20. Bc4 {[%emt 0:00:11]} Rd4 {[%emt 0:05:48]} 21. Kb3 {[%emt 0:00:31]} Kd8 {[%emt 0:51:46]} 22. Rxa7 {[%emt 0:07:27]} f5 {[%emt 0:06:48]} 23. Nd5 {[%emt 0:15:44]} Kc8 {[%emt 0:01:14]} 24. a4 {[%emt 0:14:01]} Kb8 {[%emt 0:01:12]} 25. Rd7 {[%emt 0:00:13]} Bc5 {[%emt 0:01:52]} 26. a5 {[%emt 0:00:47]} Ka8 {[%emt 0:10:05]} 27. Kc3 {[%emt 0:08:48]} e3 {[%emt 0:00:01]} 28. a6 {[%emt 0:14:54]} Rc8 {[%emt 0:01:33]} 29. Be2 {[%emt 0:01:19]} Re4 {[%emt 0:01:16]} 30. Kb3 {[%emt 0:03:13]} Rb8+ {[%emt 0:00:37]} 31. Kc2 {[%emt 0:01:04]} Rc8 {[%emt 0:00:22]} 32. Kb1 {[%emt 0:00:41]} Bd4 {[%emt 0:00:44]} 33. Rb7 {[%emt 0:01:07]} Re6 {[%emt 0:00:48]} 34. Rxh7 {[%emt 0:08:53]} Rec6 {[%emt 0:00:23]} 35. Bf3 {[%emt 0:00:28]} e2 {[%emt 0:00:38]} 36. Bxe2 {[%emt 0:01:50]} Rc1+ {[%emt 0:00:28]} 37. Ka2 {[%emt 0:00:02]} R8c2 {[%emt 0:01:04]} 38. Nc3 {[%emt 0:02:41]} Rxb2+ {[%emt 0:00:00]} 39. Kxb2 {[%emt 0:00:02]} Rxc3 {[%emt 0:00:00]} 40. Kb1 {[%emt 0:00:00]} Kb8 {[%emt 0:00:00]} 41. Rb7+ {[%emt 0:04:08]} Kc8 {[%emt 0:00:19]} 42. Rb4 {[%emt 0:01:18]} Re3 {[%emt 0:01:49]} 43. Bf3 {[%emt 0:01:49]} Re1+ {[%emt 0:00:09]} 44. Kc2 {[%emt 0:00:07]} Bf2 {[%emt 0:00:23]} 45. h4 {[%emt 0:01:32]} Kc7 {[%emt 0:01:06]} 46. a7 {[%emt 0:00:33]} 1-0